{"text_format":"1","workbook":"xlsx","n_sheets":8,"sheets":["January","February","March","INDIRECT","Summary","VBA","Type","Practice"],"not_rendered":{"charts":0,"images":0,"macros":1,"external_links":0,"defined_names":0,"comments":0,"pivot_tables":0},"unopened":[],"bounds":{"document_bytes":16777216,"sheet_cells":100000,"rows_first":2000,"rows_last":500,"rows_between":2000,"halvings":0,"cell_chars":16384,"cell_head_chars":4096},"cells_cut":0,"cells_raw":0,"read":"whole","date_system":"1900"}

{"sheet":"January","index":0,"n_rows":11,"n_cols":4,"rows_kept":11,"cut":false,"hidden":false,"merged":[[0,1,0,3]]}
[null,"Sales Record of January"]
[]
[null,"Product","Sales Person","Sales"]
[null,"Apple","Michael",4629]
[null,"Broccoli","Jefferson",3257]
[null,"Tomato","John",2091]
[null,"Banana","David",2125]
[null,"Strawberry","Jonas",2167]
[null,"Lemon","Caroline",4568]
[null,"Blackberry","Charlotte",4247]
[null,null,"Total",{"$f":"SUM(D4:D10)","v":23084}]

{"sheet":"February","index":1,"n_rows":11,"n_cols":4,"rows_kept":11,"cut":false,"hidden":false,"merged":[[0,1,0,3]]}
[null,"Sales Record of February"]
[]
[null,"Product","Sales Person","Sales"]
[null,"Apple","Michael",3417]
[null,"Broccoli","Jefferson",3507]
[null,"Tomato","John",4565]
[null,"Banana","David",3669]
[null,"Strawberry","Jonas",3253]
[null,"Lemon","Caroline",3362]
[null,"Blackberry","Charlotte",4189]
[null,null,"Total",{"$f":"SUM(D4:D10)","v":25962}]

{"sheet":"March","index":2,"n_rows":11,"n_cols":4,"rows_kept":11,"cut":false,"hidden":false,"merged":[[0,1,0,3]]}
[null,"Sales Record of March"]
[]
[null,"Product","Sales Person","Sales"]
[null,"Apple","Michael",5792]
[null,"Broccoli","Jefferson",4528]
[null,"Tomato","John",4446]
[null,"Banana","David",4426]
[null,"Strawberry","Jonas",5804]
[null,"Lemon","Caroline",5131]
[null,"Blackberry","Charlotte",4711]
[null,null,"Total",{"$f":"SUM(D4:D10)","v":34838}]

{"sheet":"INDIRECT","index":3,"n_rows":12,"n_cols":10,"rows_kept":12,"cut":false,"hidden":false,"merged":[[0,1,0,2]]}
[null,"INDIRECT Function"]
[]
[null,"Sheet Name","Total Sales"]
[null,"January",{"$f":"INDIRECT(\"'\"&B4&\"'\"&\"!\"&\"D11\")","v":23084}]
[null,"February",{"$f":"INDIRECT(\"'\"&B5&\"'\"&\"!\"&\"D11\")","v":25962}]
[null,"March",{"$f":"INDIRECT(\"'\"&B6&\"'\"&\"!\"&\"D11\")","v":34838}]
[]
[]
[]
[]
[]
[null,null,null,null,null,null,null,null,null,""]

{"sheet":"Summary","index":4,"n_rows":17,"n_cols":11,"rows_kept":17,"cut":false,"hidden":false,"merged":[[0,1,0,4]]}
[null,"Summary of Sales"]
[]
[null,"Product","January","February","March"]
[null,"Apple",{"$f":"INDIRECT(\"'\"&$C$3&\"'\"&\"!\"&ADDRESS(ROW(D4),COLUMN(D4)))","v":4629},{"$f":"INDIRECT(\"'\"&$D$3&\"'\"&\"!\"&ADDRESS(ROW(D4),COLUMN(D4)))","v":3417},{"$f":"INDIRECT(\"'\"&$E$3&\"'\"&\"!\"&ADDRESS(ROW(D4),COLUMN(D4)))","v":5792}]
[null,"Broccoli",{"$f":"INDIRECT(\"'\"&$C$3&\"'\"&\"!\"&ADDRESS(ROW(D5),COLUMN(D5)))","v":3257},{"$f":"INDIRECT(\"'\"&$D$3&\"'\"&\"!\"&ADDRESS(ROW(D5),COLUMN(D5)))","v":3507},{"$f":"INDIRECT(\"'\"&$E$3&\"'\"&\"!\"&ADDRESS(ROW(D5),COLUMN(D5)))","v":4528}]
[null,"Tomato",{"$f":"INDIRECT(\"'\"&$C$3&\"'\"&\"!\"&ADDRESS(ROW(D6),COLUMN(D6)))","v":2091},{"$f":"INDIRECT(\"'\"&$D$3&\"'\"&\"!\"&ADDRESS(ROW(D6),COLUMN(D6)))","v":4565},{"$f":"INDIRECT(\"'\"&$E$3&\"'\"&\"!\"&ADDRESS(ROW(D6),COLUMN(D6)))","v":4446}]
[null,"Banana",{"$f":"INDIRECT(\"'\"&$C$3&\"'\"&\"!\"&ADDRESS(ROW(D7),COLUMN(D7)))","v":2125},{"$f":"INDIRECT(\"'\"&$D$3&\"'\"&\"!\"&ADDRESS(ROW(D7),COLUMN(D7)))","v":3669},{"$f":"INDIRECT(\"'\"&$E$3&\"'\"&\"!\"&ADDRESS(ROW(D7),COLUMN(D7)))","v":4426}]
[null,"Strawberry",{"$f":"INDIRECT(\"'\"&$C$3&\"'\"&\"!\"&ADDRESS(ROW(D8),COLUMN(D8)))","v":2167},{"$f":"INDIRECT(\"'\"&$D$3&\"'\"&\"!\"&ADDRESS(ROW(D8),COLUMN(D8)))","v":3253},{"$f":"INDIRECT(\"'\"&$E$3&\"'\"&\"!\"&ADDRESS(ROW(D8),COLUMN(D8)))","v":5804}]
[null,"Lemon",{"$f":"INDIRECT(\"'\"&$C$3&\"'\"&\"!\"&ADDRESS(ROW(D9),COLUMN(D9)))","v":4568},{"$f":"INDIRECT(\"'\"&$D$3&\"'\"&\"!\"&ADDRESS(ROW(D9),COLUMN(D9)))","v":3362},{"$f":"INDIRECT(\"'\"&$E$3&\"'\"&\"!\"&ADDRESS(ROW(D9),COLUMN(D9)))","v":5131}]
[null,"Blackberry",{"$f":"INDIRECT(\"'\"&$C$3&\"'\"&\"!\"&ADDRESS(ROW(D10),COLUMN(D10)))","v":4247},{"$f":"INDIRECT(\"'\"&$D$3&\"'\"&\"!\"&ADDRESS(ROW(D10),COLUMN(D10)))","v":4189},{"$f":"INDIRECT(\"'\"&$E$3&\"'\"&\"!\"&ADDRESS(ROW(D10),COLUMN(D10)))","v":4711}]
[]
[]
[null,null,null,null,null,null,null,null,null,""]
[null,null,null,null,null,null,null,null,null,null,""]
[]
[]
[null,null,null,null,null,null,null,null,null,""]

{"sheet":"VBA","index":5,"n_rows":6,"n_cols":3,"rows_kept":6,"cut":false,"hidden":false,"merged":[[0,1,0,2]]}
[null,"VBA Code"]
[]
[null,"Sheet Name","Total Sales"]
[null,"January",23084]
[null,"February",25962]
[null,"March",34838]

{"sheet":"Type","index":6,"n_rows":6,"n_cols":3,"rows_kept":6,"cut":false,"hidden":false,"merged":[[0,1,0,2]]}
[null,"Typing Sheet Name"]
[]
[null,"Sheet Name","Total Sales"]
[null,"January",{"$f":"January!D11","v":23084}]
[null,"February",{"$f":"February!D11","v":25962}]
[null,"March",{"$f":"March!D11","v":34838}]

{"sheet":"Practice","index":7,"n_rows":16,"n_cols":11,"rows_kept":16,"cut":false,"hidden":false,"merged":[[0,1,0,4]]}
[null,"Practice"]
[null,"Product","January","February","March"]
[null,"Apple"]
[null,"Broccoli"]
[null,"Tomato"]
[null,"Banana"]
[null,"Strawberry"]
[null,"Lemon"]
[null,"Blackberry"]
[]
[null,"Sheet Name","Total Sales"]
[null,"January",null,null,null,null,null,null,null,""]
[null,"February",null,null,null,null,null,null,null,null,""]
[null,"March"]
[]
[null,null,null,null,null,null,null,null,null,""]